bitfinex/quotes_ETHUSD_20250731
["timestamp","ask_amount","ask_price","bid_price","bid_amount"]
[1753958968802,3.3737939,3867.2,3867.1,0.4925]
[1753958969371,5.95964412,3867.2,3867.1,0.4925]
[1753958972295,5.95964412,3867.2,3867.1,0.001]
[1753958975184,6.89264412,3867.2,3867.1,0.001]
[1753958975885,8.27034412,3867.2,3867.1,0.001]
[1753958979488,8.60787259,3867.2,3867.1,0.001]
[1753958980302,2.58605084,3866.9,3866.8,0.001]
[1753958980515,21.95240017,3866.9,3866.8,0.001]
[1753958980686,22.88540017,3866.9,3866.8,0.001]
[1753958981786,23.43540017,3866.9,3866.8,0.001]
[1753958982920,18.60664474,3866.9,3866.8,0.001]
[1753958983617,18.60674529,3866.9,3866.8,0.001]
[1753958983832,16.76834529,3866.9,3866.8,0.4854]
[1753958984031,9.30334529,3866.9,3866.8,0.9303]
[1753958984219,16.21834529,3866.9,3866.8,0.9303]
[1753958985433,12.30334529,3866.9,3866.8,0.9303]
[1753958985592,16.21834529,3866.9,3866.8,0.9303]
[1753958985792,12.30334529,3866.9,3866.8,0.9303]
[1753958985992,16.21834529,3866.9,3866.8,0.9303]
[1753958986528,9.71729445,3866.9,3866.8,0.9303]
[1753958986692,13.63229445,3866.9,3866.8,1.7238]
[1753958986898,6.71729445,3866.9,3866.8,2.15501183]
[1753958987098,6.71729445,3866.9,3866.8,1.7238]
[1753958988115,6.71729445,3866.9,3866.8,4.30991772]
[1753958988291,0.24229445,3866.9,3866.8,4.30991772]
[1753958988931,0.24229445,3866.9,3866.8,1.7238]
[1753958989323,0.24229445,3866.9,3866.8,0.7945]
[1753958989711,0.24229445,3866.9,3866.8,1.2789]
[1753958989897,6.71529445,3866.9,3866.8,1.2789]
[1753958991900,6.71529445,3866.9,3866.8,1.7238]
[1753958993021,6.71528323,3866.9,3866.8,1.7238]
[1753958993223,6.71528323,3866.9,3866.8,1.2789]
[1753958993532,6.71528323,3866.9,3866.8,1.7238]
[1753958994037,6.84488323,3866.9,3866.8,1.7238]
[1753958996353,6.84486482,3866.9,3866.8,1.7238]
[1753958998109,6.84486482,3866.9,3866.8,1.2789]
[1753958998614,10.36391566,3866.9,3866.8,0.001]
[1753959003349,13.91391566,3866.9,3866.8,0.001]
[1753959003651,13.91387646,3866.9,3866.8,0.001]
[1753959004222,13.91387579,3866.9,3866.8,0.001]
[1753959006752,13.91387097,3866.9,3866.8,0.001]
[1753959006928,12.43087097,3866.9,3866.8,0.001]
[1753959007128,16.34387097,3866.9,3866.8,0.001]
[1753959007451,16.83787097,3866.9,3866.8,0.001]
[1753959007969,16.34387158,3866.9,3866.8,0.001]
[1753959009847,13.75682074,3866.9,3866.8,0.4614]
[1753959010064,9.84482074,3866.9,3866.8,0.4614]
[1753959010351,12.43087158,3866.9,3866.8,0.4614]
[1753959010852,6.84482074,3866.9,3866.8,0.4614]
[1753959012355,9.43087158,3866.9,3866.8,0.4614]
[1753959012527,10.35407158,3866.9,3866.8,0.001]
[1753959012724,17.26607158,3866.9,3866.8,0.001]
[1753959012923,18.07967158,3866.9,3866.8,0.001]
[1753959013851,6.84482074,3866.9,3866.8,0.001]
[1753959014046,6.84482074,3866.9,3866.8,0.4614]
[1753959014761,6.84496597,3866.9,3866.8,0.4614]
[1753959018866,6.84498827,3866.9,3866.8,0.4614]
[1753959021747,6.84498827,3866.9,3866.8,3.04751772]
[1753959022331,6.84498827,3866.9,3866.8,0.4614]
[1753959024981,6.84499816,3866.9,3866.8,0.4614]
[1753959025683,6.84499816,3866.9,3866.8,0.001]
[1753959026965,7.76819816,3866.9,3866.8,0.001]
[1753959028078,10.354249,3866.9,3866.8,0.001]
[1753959028584,14.733749,3866.9,3866.8,0.001]
[1753959031770,14.7337666,3866.9,3866.8,0.001]
[1753959033669,14.7337204,3866.9,3866.8,0.001]
[1753959036730,14.73363191,3866.9,3866.8,0.001]
[1753959038617,19.56238734,3866.9,3866.8,0.001]
[1753959042835,19.5622617,3866.9,3866.8,0.001]
[1753959048627,6.13611772,3866.8,3866.7,0.001]
[1753959048828,10.28827315,3866.8,3866.7,0.001]
[1753959049157,11.22677315,3866.8,3866.7,0.001]
[1753959051565,1.3152,3866.6,3866.4,1e-08]
[1753959051784,22.35836533,3866.5,3866.4,1e-08]
[1753959051992,23.42646533,3866.5,3866.4,1e-08]
[1753959052139,22.48796533,3866.5,3866.4,1e-08]
[1753959052346,23.42646533,3866.5,3866.4,1e-08]
[1753959053181,23.42646801,3866.5,3866.4,1e-08]
[1753959053558,23.1843738,3866.5,3866.4,1e-08]
[1753959054678,23.42653496,3866.5,3866.4,1e-08]
[1753959054844,23.1843738,3866.5,3866.4,1e-08]
[1753959055347,3.91411906,3866.2,3865.7,0.001]
[1753959055683,15.89508215,3866.2,3865.7,0.001]
[1753959055970,16.96318215,3866.2,3865.7,0.001]
[1753959056944,16.96318215,3866.2,3866.1,1e-08]
[1753959064993,16.96305208,3866.2,3866.1,1e-08]
[1753959065769,7.15619665,3866.2,3866.1,1e-08]
[1753959065974,11.19679665,3866.2,3866.1,1e-08]
[1753959068264,10.41919665,3866.2,3866.1,0.49800001]
[1753959070671,10.17711906,3866.2,3866.1,0.49800001]
[1753959070881,10.41924742,3866.2,3866.1,0.49800001]
[1753959072470,10.41924742,3866.2,3866.1,1e-08]
[1753959072794,11.35744742,3866.2,3866.1,1e-08]
[1753959073503,12.46647589,3866.2,3866.1,1e-08]
[1753959073792,10.96554212,3865.8,3865.7,0.001]
[1753959073997,21.72527048,3865.8,3865.7,0.001]
[1753959076507,21.17527048,3865.8,3865.7,0.001]
[1753959076715,21.72554005,3865.8,3865.7,0.001]
[1753959077560,22.53934005,3865.8,3865.7,0.001]
[1753959077765,23.47754005,3865.8,3865.7,0.001]
[1753959079178,23.60478606,3865.8,3865.7,0.001]
[1753959079977,23.05478606,3865.8,3865.7,0.001]
[1753959081402,23.60478606,3865.8,3865.7,0.001]
[1753959081611,3.13718824,3865.2,3865.1,0.041]
[1753959081917,16.89718617,3865.2,3865.1,0.041]
[1753959082462,16.65478824,3865.2,3865.1,0.041]
[1753959082713,16.8973846,3865.2,3865.1,0.041]
[1753959083312,21.72614003,3865.2,3865.1,0.041]
[1753959083604,22.66434003,3865.2,3865.1,0.041]
[1753959084590,22.20864003,3865.2,3865.1,0.041]
[1753959084904,22.66434003,3865.2,3865.1,0.041]
[1753959088506,22.79412913,3865.2,3865.1,0.041]
[1753959090371,22.79375044,3865.2,3865.1,0.041]
[1753959091412,22.79371265,3865.2,3865.1,0.041]
[1753959091594,22.79371265,3865.2,3864.4,0.001]
[1753959091595,3.13765687,3864.5,3864.4,0.001]
[1753959091810,12.85783675,3864.5,3864.4,0.4577]
[1753959091971,12.85783675,3864.5,3864.4,1.2147]
[1753959091972,9.84977988,3864.5,3864.4,1.2147]
[1753959092302,5.82983675,3864.5,3864.4,1.7127]
[1753959092709,12.30783675,3864.5,3864.4,1.7127]
[1753959093918,12.30783675,3864.5,3864.4,1.256]
[1753959094288,12.06565687,3864.5,3864.4,1.256]
[1753959094486,12.30775629,3864.5,3864.4,1.256]
[1753959095212,12.30775629,3864.5,3864.4,1.7127]
[1753959095571,12.30775629,3864.5,3864.4,1.256]
[1753959098703,12.43733069,3864.5,3864.4,1.256]
[1753959101304,13.63209942,3864.5,3864.4,1.7127]
[1753959102313,16.21975629,3864.5,3864.4,1.7127]
[1753959102686,13.63209942,3864.5,3864.4,1.7127]
[1753959103192,16.21975629,3864.5,3864.4,1.7127]
[1753959103917,10.63209942,3864.5,3864.4,1.7127]
[1753959104813,10.63209942,3864.5,3864.4,1.256]
[1753959104988,13.21975629,3864.5,3864.4,1.256]
[1753959106533,13.21975629,3864.5,3864.4,0.758]
[1753959106736,13.21975629,3864.5,3864.4,0.001]
[1753959106737,16.76975629,3864.5,3864.4,0.001]
[1753959107032,17.68955629,3864.5,3864.4,0.001]
[1753959107332,16.76975629,3864.5,3864.4,0.001]
[1753959107685,16.76875629,3864.5,3864.4,1.2821]
[1753959109215,16.76907121,3864.5,3864.4,1.2821]
[1753959109430,16.76912187,3864.5,3864.4,1.2821]
[1753959110848,16.76912187,3864.5,3864.4,0.8098]
[1753959111237,16.76918169,3864.5,3864.4,0.8098]
[1753959112717,17.21618169,3864.5,3864.4,0.001]
[1753959112919,17.68898169,3864.5,3864.4,0.001]
[1753959115948,17.44645687,3864.5,3864.4,0.001]
[1753959116957,17.57605687,3864.5,3864.4,0.001]
[1753959119551,17.81885716,3864.5,3863.8,2.5880781]
[1753959119726,0.1296,3864.1,3863.8,2.5880781]
[1753959119925,0.24279093,3864.0,3863.8,3.11866913]
[1753959120125,0.24279093,3863.9,3863.8,3.11866913]
[1753959121556,0.24279093,3863.9,3863.8,3.38806913]
[1753959122460,0.24279093,3863.9,3863.8,3.87616913]
[1753959126151,0.24279093,3863.9,3863.8,3.60676913]
[1753959126359,0.1296,3864.1,3864.0,3.07609171]
[1753959126546,0.1296,3864.1,3864.0,3.72250779]
[1753959126737,0.24281696,3864.5,3864.3,2.58778358]
[1753959126943,6.6066,3864.5,3864.4,0.4881]
[1753959127143,6.84941676,3864.5,3864.4,0.4881]
[1753959128162,7.32911676,3864.5,3864.4,0.4881]
[1753959128362,7.78141676,3864.5,3864.4,0.4881]
[1753959129161,7.78132507,3864.5,3864.4,0.4881]
[1753959130852,6.84932507,3864.5,3864.4,0.4881]
[1753959131032,6.71972507,3864.5,3864.4,3.64320296]
[1753959131444,6.71972507,3864.5,3864.4,3.91260296]
[1753959132045,6.71972507,3864.5,3864.4,3.64320296]
[1753959132257,6.71962819,3864.5,3864.4,3.64320296]
[1753959132436,6.477,3864.5,3864.4,3.64320296]
[1753959133164,3.913,3865.1,3864.8,0.4881]
[1753959133367,0.24256175,3865.0,3864.8,0.4881]
[1753959133567,0.24256175,3864.9,3864.8,3.07555601]
[1753959133781,0.002,3865.1,3865.0,2.58732212]
[1753959137582,0.002,3865.1,3865.0,2.85672212]
[1753959137735,0.002,3865.1,3865.0,2.98632212]
[1753959138759,0.002,3865.1,3865.0,8.03377755]
[1753959138962,0.002,3865.1,3865.0,3.20502212]
[1753959139182,0.002,3865.1,3865.0,5.07566381]
[1753959140177,0.002,3865.1,3865.0,4.80626381]
[1753959141975,0.002,3865.1,3865.0,5.07566381]
[1753959142294,0.002,3865.1,3865.0,9.90441924]
[1753959145193,0.002,3865.1,3865.0,9.63501924]
[1753959145400,0.002,3865.1,3865.0,9.90441924]
[1753959152119,0.002,3865.1,3865.0,9.63501924]
[1753959162845,0.002,3865.1,3865.0,4.80626381]
[1753959163147,0.8867,3865.1,3865.0,8.71626381]
[1753959170851,0.8867,3865.1,3865.0,12.57601759]
[1753959179963,0.002,3865.1,3865.0,12.57601759]
[1753959181451,0.8867,3865.1,3865.0,12.57601759]
[1753959181876,0.002,3865.5,3865.4,2.58705437]
[1753959182032,0.8867,3865.5,3865.4,11.1319524]
[1753959182443,0.8867,3865.5,3865.4,11.2615524]
[1753959186366,0.8867,3865.5,3865.4,10.48540815]
[1753959187166,0.8867,3865.5,3865.4,6.62565437]
[1753959187371,1.6837,3865.5,3865.4,2.71665437]
[1753959187672,1.6837,3865.5,3865.4,6.62565437]
[1753959188969,1.6837,3865.5,3865.4,4.0386]
[1753959189176,1.6837,3865.5,3865.4,0.1296]
[1753959189649,1.6837,3865.5,3865.4,4.0386]
[1753959190241,1.92634286,3865.5,3865.4,3.909]
[1753959190847,1.6837,3865.5,3865.4,3.909]
[1753959194381,1.6837,3865.5,3865.4,6.49605437]
[1753959194877,1.6837,3865.5,3865.4,3.909]
[1753959195451,0.9103,3865.5,3865.4,3.909]
[1753959200187,1.15291286,3865.5,3865.4,3.909]
[1753959200890,1.15291286,3865.5,3865.4,6.49605437]
[1753959202389,0.9103,3865.5,3865.4,6.49605437]
[1753959207699,0.9103,3865.5,3865.4,3.909]
[1753959207998,1.1528978,3865.5,3865.4,3.909]
[1753959209529,1.15288981,3865.5,3865.4,3.909]
[1753959210567,0.7568,3865.4,3865.2,3.909]
[1753959210768,0.9083,3865.3,3865.2,3.909]
[1753959211476,0.8331,3865.2,3865.1,0.1296]
[1753959211663,0.8331,3865.2,3865.0,0.001]
[1753959211664,4.70078311,3865.2,3865.0,0.001]
[1753959211863,0.9083,3865.1,3865.0,0.001]
[1753959212501,4.31585518,3865.1,3865.0,0.001]
[1753959212803,8.46745777,3865.1,3865.0,0.001]
[1753959218414,8.46733326,3865.1,3865.0,0.001]
[1753959219513,11.46733326,3865.1,3865.0,0.001]
[1753959219817,11.46733326,3865.1,3863.4,0.4881]
[1753959219818,0.8174,3864.7,3863.4,0.4881]
[1753959220117,0.8174,3864.3,3863.8,3.909]
[1753959220317,0.1296,3864.2,3863.8,3.909]
[1753959220619,3.62868815,3864.2,3863.7,0.1296]
[1753959220833,0.44460881,3864.1,3863.7,0.1296]
[1753959221041,0.9112,3864.1,3863.7,0.1296]
[1753959222638,3.49912474,3864.1,3863.6,3.911]
[1753959223237,3.49912474,3864.1,3863.6,0.001]
[1753959224034,0.9112,3864.1,3863.6,0.001]
[1753959224338,3.49912474,3864.1,3863.6,0.001]
[1753959225833,3.49775311,3864.1,3863.6,0.001]
[1753959228343,4.28095311,3864.1,3863.6,0.001]
[1753959229345,4.83095311,3864.1,3863.6,0.001]
[1753959237557,8.74195311,3864.1,3863.6,0.001]
[1753959239640,8.74395311,3864.1,3863.6,0.001]
[1753959240248,8.98562316,3864.1,3863.6,0.001]
[1753959241353,8.98568474,3864.1,3863.6,0.001]
[1753959242030,8.74532474,3864.1,3863.6,0.001]
[1753959242232,2.48819305,3864.1,3863.6,0.001]
[1753959242552,0.002,3864.1,3863.8,0.2707]
[1753959243119,0.002,3864.1,3863.6,0.2717]
[1753959243326,0.002,3864.1,3863.6,2.85990625]
[1753959243669,0.002,3864.1,3863.9,0.4881]
[1753959244021,0.002,3864.1,3863.9,0.6177]
[1753959244223,0.002,3864.1,3863.9,3.20574264]
[1753959244821,0.002,3864.1,3864.0,2.58899171]
[1753959245024,0.002,3864.1,3864.0,0.001]
[1753959247228,0.002,3864.1,3864.0,0.34874398]
[1753959247456,0.002,3864.1,3864.0,0.61944398]
[1753959247628,0.002,3864.1,3864.0,0.34874398]
[1753959248652,0.24410297,3864.1,3864.0,0.34874398]
[1753959249157,3.76592771,3864.1,3864.0,0.001]
[1753959249456,3.89552771,3864.1,3864.0,0.001]
[1753959249627,7.80652771,3864.1,3864.0,0.001]
[1753959251650,5.21860297,3864.1,3864.0,0.001]
[1753959252275,7.80652771,3864.1,3864.0,0.001]
[1753959252637,5.21860297,3864.1,3864.0,0.001]
[1753959252842,7.80652771,3864.1,3864.0,0.001]
[1753959253548,3.65342474,3864.1,3864.0,0.001]
[1753959253757,7.80713907,3864.1,3864.0,0.001]
[1753959254865,5.21921433,3864.1,3864.0,0.001]
[1753959256867,4.15571433,3864.1,3864.0,0.001]
[1753959257161,0.24471433,3864.1,3864.0,0.61945894]
[1753959257359,0.24471433,3864.1,3864.0,3.33705065]
[1753959258060,0.002,3864.1,3864.0,3.33705065]
[1753959259187,0.002,3864.1,3864.0,3.82515065]
[1753959261281,0.002,3864.1,3864.0,3.06635065]
[1753959261479,0.2445798,3864.1,3864.0,3.06635065]
[1753959261872,0.002,3864.1,3864.0,3.06635065]
[1753959266489,0.9359,3864.1,3864.0,0.1306]
[1753959266651,1.17842784,3864.1,3864.0,0.1306]
[1753959267608,1.17842784,3864.1,3864.0,2.71859171]
[1753959268611,0.24452784,3864.1,3864.0,2.71859171]
[1753959268891,0.002,3864.1,3864.0,2.71859171]
[1753959269051,0.002,3864.1,3864.0,6.63159171]
[1753959276563,0.002,3864.1,3864.0,4.0436]
[1753959276870,0.002,3864.1,3864.0,6.63159171]
[1753959277662,0.4951,3864.1,3864.0,6.63159171]
[1753959278360,0.4951,3864.1,3864.0,4.0436]
[1753959278711,0.9397,3864.1,3864.0,4.0406]
[1753959280360,0.9397,3864.1,3864.0,0.1306]
[1753959280563,1.18229274,3864.1,3864.0,0.1306]
[1753959280993,1.18229274,3864.1,3864.0,0.001]
[1753959285705,0.24459274,3864.1,3864.0,0.001]
[1753959286001,0.24459274,3864.1,3864.0,2.71859171]
[1753959287380,0.24459274,3864.1,3864.0,7.11669171]
[1753959287578,0.24459274,3864.1,3864.0,8.56995916]
[1753959288088,0.002,3864.1,3864.0,8.56995916]
[1753959288506,0.002,3864.1,3864.0,7.11669171]
[1753959295406,0.9397,3864.1,3864.0,6.62859171]
[1753959296231,0.002,3864.1,3864.0,6.62859171]
[1753959297012,0.002,3864.1,3864.0,11.45650509]
[1753959301310,0.4951,3864.1,3864.0,11.45650509]
[1753959301629,0.9397,3864.1,3864.0,6.62859171]
[1753959302210,0.9397,3864.1,3864.0,0.001]
[1753959302832,1.18241445,3864.1,3864.0,0.001]
[1753959303406,1.31201445,3864.1,3864.0,0.001]
[1753959308265,1.31190418,3864.1,3864.0,0.001]
[1753959308640,1.31190261,3864.1,3864.0,0.001]
[1753959309137,3.89982735,3864.1,3864.0,0.001]
[1753959309515,7.80982735,3864.1,3864.0,0.001]
[1753959309709,8.59018938,3864.1,3864.0,0.001]
[1753959309931,7.80982735,3864.1,3864.0,0.001]
[1753959312227,5.22190261,3864.1,3864.0,0.001]
[1753959313854,5.22172507,3864.1,3864.0,0.001]
[1753959316757,3.89964981,3864.1,3864.0,0.001]
[1753959316931,1.31169747,3864.1,3864.0,0.001]
[1753959330629,1.31183988,3864.1,3864.0,0.001]
[1753959332669,0.37413988,3864.1,3864.0,0.001]
[1753959333236,1.31134604,3864.1,3864.0,0.001]
[1753959333829,4.70567078,3864.1,3864.0,0.001]
[1753959335031,7.70567078,3864.1,3864.0,0.001]
[1753959335367,8.25567078,3864.1,3864.0,0.001]
[1753959337534,13.08358416,3864.1,3864.0,0.001]
[1753959337731,13.08339735,3864.1,3864.0,0.001]
[1753959339060,13.32588349,3864.1,3864.0,0.001]
[1753959339647,13.45829796,3864.1,3864.0,0.001]
[1753959342059,13.45810585,3864.1,3864.0,0.001]
[1753959345058,8.63019247,3864.1,3864.0,0.001]
[1753959345254,8.6297808,3864.1,3864.0,0.001]
[1753959346545,12.5407808,3864.1,3864.0,0.001]
[1753959351561,12.29848677,3864.1,3864.0,0.001]
[1753959351764,12.54060742,3864.1,3864.0,0.001]
[1753959358288,12.81230742,3864.1,3864.0,0.001]
[1753959358478,12.81236069,3864.1,3864.0,0.001]
[1753959359861,12.81239226,3864.1,3864.0,0.001]
[1753959361571,8.90139226,3864.1,3864.0,0.001]
[1753959361777,12.81239226,3864.1,3864.0,0.001]
[1753959363080,11.60369226,3864.1,3864.0,0.001]
[1753959363486,12.51749226,3864.1,3864.0,0.001]
[1753959368698,12.51809617,3864.1,3864.0,0.001]
[1753959368900,12.03313921,3864.1,3864.0,0.001]
[1753959369102,12.51858833,3864.1,3864.0,0.001]
[1753959369499,12.5185928,3864.1,3864.0,0.001]
[1753959376511,12.51861369,3864.1,3864.0,0.001]
[1753959377309,12.51860171,3864.1,3864.0,0.001]
[1753959382316,3.13819266,3863.7,3863.6,0.001]
[1753959382519,18.82716025,3863.7,3863.6,0.001]
[1753959382896,15.87592413,3863.7,3863.6,0.001]
[1753959384314,15.87592413,3863.7,3863.2,0.001]
[1753959384315,3.08746064,3863.3,3863.2,0.001]
[1753959384507,13.84977769,3863.3,3863.2,0.001]
[1753959385400,13.84969504,3863.3,3863.2,0.001]
[1753959388514,13.84969172,3863.3,3863.2,0.001]
[1753959388923,11.39331852,3863.3,3863.2,0.001]
[1753959389424,11.26123108,3863.3,3863.2,0.7598]
[1753959390610,11.26123108,3863.3,3863.2,0.4891]
[1753959391007,13.84969172,3863.3,3863.2,0.4891]
[1753959391214,13.84969172,3863.3,3863.2,0.001]
[1753959392396,11.26123108,3863.3,3863.2,0.001]
[1753959396435,7.35123108,3863.3,3863.2,0.001]
[1753959396730,11.26123108,3863.3,3863.2,0.001]
[1753959397231,11.26121452,3863.3,3863.2,0.001]
[1753959398913,13.84967516,3863.3,3863.2,0.001]
[1753959399234,11.26121452,3863.3,3863.2,0.001]
[1753959403155,14.77587516,3863.3,3863.2,0.001]
[1753959403317,16.14887516,3863.3,3863.2,0.001]
[1753959403625,19.14887516,3863.3,3863.2,0.001]
[1753959404947,19.3915528,3863.3,3863.2,0.001]
[1753959405665,19.3915297,3863.3,3863.2,0.001]
[1753959406036,19.39157289,3863.3,3863.2,0.001]
[1753959408034,19.58260763,3863.3,3863.2,0.001]
[1753959417848,19.58228482,3863.3,3863.2,0.001]
[1753959418872,19.58229454,3863.3,3863.2,0.001]
[1753959419879,19.58229753,3863.3,3863.2,0.001]
[1753959420658,19.58229714,3863.3,3863.2,0.001]
[1753959423946,6.13852764,3863.2,3863.1,1e-08]
[1753959424152,13.18835294,3863.2,3863.1,1e-08]
[1753959425187,13.18835294,3863.2,3862.1,0.04]
[1753959425188,2.58919786,3862.2,3862.1,0.04]
[1753959425480,13.22369518,3862.2,3862.1,0.04]
[1753959425672,16.35329518,3862.2,3862.1,0.04]
[1753959426080,16.3532374,3862.2,3862.1,0.04]
[1753959427952,17.2714374,3862.2,3862.1,0.04]
[1753959428267,17.8214374,3862.2,3862.1,0.04]
[1753959428659,2.5895331,3861.7,3861.6,0.001]
[1753959428858,13.22397264,3861.7,3861.6,0.001]
[1753959429053,13.35357264,3861.7,3861.6,0.001]
[1753959430009,13.35340858,3861.7,3861.6,0.001]
[1753959430159,13.90340858,3861.7,3861.6,0.001]
[1753959430357,9.44340858,3861.7,3861.6,0.001]
[1753959430678,13.1111331,3861.7,3861.6,0.2717]
[1753959431191,13.35343812,3861.7,3861.6,0.001]
[1753959432488,14.27163812,3861.7,3861.6,0.001]
[1753959432688,16.35343812,3861.7,3861.6,0.001]
[1753959433469,16.80613812,3861.7,3861.6,0.001]
[1753959434605,16.35343812,3861.7,3861.6,0.001]
[1753959436061,16.4811705,3861.7,3861.6,0.001]
[1753959436372,12.5711705,3861.7,3861.6,0.001]
[1753959436570,16.4811705,3861.7,3861.6,0.001]
[1753959438891,16.35343812,3861.7,3861.6,0.001]
[1753959439299,16.80613812,3861.7,3861.6,0.001]
[1753959439461,17.82163812,3861.7,3861.6,0.001]
[1753959440900,18.62573812,3861.7,3861.6,0.001]
[1753959450725,17.82163812,3861.7,3861.6,0.001]
[1753959451112,17.95353058,3861.7,3861.6,0.001]
[1753959452241,18.19568864,3861.7,3861.6,0.001]
[1753959452535,12.81748864,3861.7,3861.6,0.001]
[1753959452757,13.63530502,3861.7,3861.6,0.2717]
[1753959454341,13.63530502,3861.7,3861.6,0.7598]
[1753959456323,13.63530502,3861.7,3861.6,0.4891]
[1753959457013,16.22483812,3861.7,3861.6,0.4891]
[1753959457417,16.22483812,3861.7,3861.6,0.001]
[1753959460114,16.22511305,3861.7,3861.6,0.001]
[1753959460649,9.72457995,3861.7,3861.6,0.001]
[1753959460948,13.63457995,3861.7,3861.6,0.001]
[1753959461450,16.22411305,3861.7,3861.6,0.001]
[1753959462648,16.35371305,3861.7,3861.6,0.001]
[1753959463246,16.35376305,3861.7,3861.6,0.001]
[1753959464117,17.25096305,3861.7,3861.6,0.001]
[1753959464536,17.80096305,3861.7,3861.6,0.001]
[1753959464738,18.86280276,3861.7,3861.6,0.001]
[1753959466580,18.96659076,3861.7,3861.6,0.001]
[1753959470777,15.05659076,3861.7,3861.6,0.001]
[1753959471003,18.96759076,3861.7,3861.6,0.001]
[1753959473791,15.05659076,3861.7,3861.6,0.001]
[1753959473999,18.96759076,3861.7,3861.6,0.001]
[1753959474889,15.05645,3861.7,3861.6,0.001]
[1753959475183,18.044462,3861.7,3861.6,0.001]
[1753959476953,18.798262,3861.7,3861.6,0.001]
[1753959481801,14.887262,3861.7,3861.6,0.001]
[1753959481999,18.797262,3861.7,3861.6,0.001]
[1753959482776,18.79714978,3861.7,3861.6,0.001]
[1753959483168,18.90093778,3861.7,3861.6,0.001]
[1753959491424,18.65855105,3861.7,3861.6,0.001]
[1753959491633,18.9010239,3861.7,3861.6,0.001]
[1753959491927,18.65855105,3861.7,3861.6,0.001]
[1753959492431,18.4159211,3861.7,3861.6,0.001]
[1753959492627,18.65841656,3861.7,3861.6,0.001]
[1753959492804,18.4159211,3861.7,3861.6,0.001]
[1753959493009,18.65840509,3861.7,3861.6,0.001]
[1753959493729,18.4159211,3861.7,3861.6,0.001]
[1753959493933,18.90098752,3861.7,3861.6,0.001]
[1753959494529,2.58999726,3861.1,3860.7,0.3008]
[1753959494725,10.63653321,3861.0,3860.7,0.3008]
[1753959494933,0.37213321,3860.9,3860.7,0.3008]
[1753959495144,4.15253321,3860.8,3860.7,0.3008]
[1753959496715,4.15260429,3860.8,3860.7,0.3008]
[1753959497750,7.15260429,3860.8,3860.7,0.3008]
[1753959498043,9.74274104,3860.8,3860.4,0.3008]
[1753959498243,0.24260429,3860.7,3860.4,0.3008]
[1753959498458,4.15260429,3860.6,3860.4,0.3008]
[1753959498614,0.24260429,3860.5,3860.4,0.3008]
[1753959499649,0.24250456,3860.5,3860.4,0.3008]
[1753959500045,2.83284259,3860.5,3860.4,0.3008]
[1753959500222,0.24250456,3860.5,3860.4,0.3008]
[1753959509443,2.83284259,3860.5,3860.4,0.3008]
[1753959510358,3.33224259,3860.5,3860.4,0.3008]
[1753959510559,2.59040513,3860.4,3860.3,0.001]
[1753959510881,6.74390969,3860.4,3860.3,0.001]
[1753959511789,7.24330969,3860.4,3860.3,0.001]
[1753959511962,7.37290969,3860.4,3860.3,0.001]
[1753959512163,7.84040969,3860.4,3860.3,0.001]
[1753959517263,10.84040969,3860.4,3860.3,0.001]
[1753959520847,10.97122919,3860.4,3860.3,0.001]
[1753959523327,8.38082406,3860.4,3860.3,0.001]
[1753959523495,7.28173873,3860.4,3860.3,0.001]
[1753959523697,7.76473873,3860.4,3860.3,0.001]
[1753959523910,7.28173873,3860.4,3860.3,0.001]
[1753959524096,7.76473873,3860.4,3860.3,0.001]
[1753959524283,10.79074386,3860.4,3860.3,0.001]
[1753959532849,3.37173873,3860.4,3860.3,0.001]
[1753959533016,7.28173873,3860.4,3860.3,0.001]
[1753959534046,3.37173873,3860.4,3860.3,0.001]
[1753959534255,7.28173873,3860.4,3860.3,0.001]
[1753959534624,3.37173873,3860.4,3860.3,0.001]
[1753959534827,7.28173873,3860.4,3860.3,0.001]
[1753959536321,7.76473873,3860.4,3860.3,0.001]
[1753959536722,10.35514386,3860.4,3860.3,0.001]
[1753959537154,10.79074386,3860.4,3860.3,0.001]
[1753959537722,8.20033873,3860.4,3860.3,0.001]
[1753959537923,10.79090255,3860.4,3860.3,0.001]
[1753959540758,11.59710255,3860.4,3860.3,0.001]
[1753959541125,10.79090255,3860.4,3860.3,0.001]
[1753959542546,4.15229742,3860.4,3860.3,0.3018]
[1753959546429,4.15225382,3860.4,3860.3,0.3018]
[1753959549082,4.15219457,3860.4,3860.3,0.3018]
[1753959549462,3.91,3860.4,3860.3,0.3018]
[1753959549662,4.15217753,3860.4,3860.3,0.3018]
[1753959551455,4.65147753,3860.4,3860.3,0.3018]
[1753959551954,4.15217753,3860.4,3860.3,0.3018]
[1753959552182,4.65147753,3860.4,3860.3,0.3018]
[1753959552384,0.74147753,3860.4,3860.3,0.3018]
[1753959552588,4.65147753,3860.4,3860.3,0.3018]
[1753959553289,5.10247753,3860.4,3860.3,0.3018]
[1753959553486,5.10247753,3860.4,3860.3,0.001]
[1753959554595,4.8603,3860.4,3860.3,0.001]
[1753959555392,5.10240527,3860.4,3860.3,0.001]
[1753959557495,7.6928104,3860.4,3860.3,0.001]
[1753959557691,5.10240527,3860.4,3860.3,0.001]
[1753959561863,0.24210527,3860.4,3860.3,0.001]
[1753959562101,4.15113661,3860.4,3860.3,0.001]
[1753959564110,3.909,3860.4,3860.3,0.001]
[1753959566324,4.4083,3860.4,3860.3,0.001]
[1753959566823,3.909,3860.4,3860.3,0.001]
[1753959567005,3.909,3860.4,3860.3,2.72106265]
[1753959567201,4.15119503,3860.4,3860.3,0.1306]
[1753959567405,3.909,3860.4,3860.3,0.1306]
[1753959567825,3.909,3860.4,3860.3,2.72107224]